Cogmind - Beta 13 *** ADVENTURER MODE // 2024.06.25 @ 14:31:40 Player: Urist Result: Destroyed by Y-45 Defender with Heavy Assault Rifle Performance ------------- Evolutions (1) 500 Regions Visited (2) 400 Robots Destroyed (5) 25 Value Destroyed (167) 167 Prototype IDs (0) 0 Alien Tech Used (0) 0 Bonus (0) 0 TOTAL SCORE: 1092 Bonus ------- None Cogmind --------- Core Integrity 0/400 Matter 300/300 Energy 99/100 System Corruption 6% Temperature Cool (9) Movement Core (350) Ox6 Location -9/Materials Parts ------- > --- POWER (1) -------- (None) > --- PROPULSION (2) --- (None) > --- UTILITY (3) ------ Large Storage Unit > --- WEAPON (3) ------- (None) > --- INVENTORY (15) --- High-capacity Matter Pod (128) Seismic Detector Welding Torch Peak State ------------ > --- POWER ------------ Ion Engine > --- PROPULSION ------- Aluminum Leg Aluminum Leg > --- UTILITY ---------- Heat Sink High-capacity Matter Pod > --- WEAPON ----------- Medium Laser Medium Laser > --- INVENTORY -------- Light Assault Rifle [Rating: 7] Favorites ----------- Power Ion Engine Engine Ion Engine Propulsion Aluminum Leg Leg Aluminum Leg Utility Targeting Computer Device Heat Sink Storage High-capacity Matter Pod Processor Targeting Computer Weapon Medium Laser Energy Gun Medium Laser Ballistic Gun Light Assault Rifle Build | -11 -10 -9 ------- Run | Yrd Mat Mat Slots Evolved 2 | . . 2 Power . | . . . Propulsion . | . . . Utility 1 | . . 1 Weapon 1 | . . 1 Parts Attached 13 | 7 4 2 Power 2 | 2 . . Engine 2 | 2 . . Core . | . . . Reactor . | . . . Propulsion 2 | 2 . . Treads . | . . . Leg 2 | 2 . . Wheel . | . . . Hover . | . . . Flight . | . . . Utility 6 | 1 4 1 Device 1 | 1 . . Storage 4 | . 3 1 Processor 1 | . 1 . Hackware . | . . . Protection . | . . . Artifact . | . . . Weapon 3 | 2 . 1 Energy Gun 2 | 2 . . Energy Cannon . | . . . Ballistic Gun 1 | . . 1 Ballistic Cannon . | . . . Launcher . | . . . Special Weapon . | . . . Impact Weapon . | . . . Slashing Weapon . | . . . Piercing Weapon . | . . . Special Melee Weapon . | . . . Unidentified Prototypes . | . . . Parts Lost 5 | . . 5 Power 1 | . . 1 Propulsion 1 | . . 1 Utility 1 | . . 1 Weapon 2 | . . 2 Highest Loss Streak 4 | . . 4 To Critical Strikes . | . . . Average Slot Usage (%) 89 | . 96 60 Engine 12 | . 14 7 Leg 25 | . 28 16 Device 3 | . 4 . Storage 10 | . 10 11 Processor 9 | . 9 7 Energy Gun 25 | . 28 16 Naked Turns . | . . . Heaviest Build 89 | 10 89 29 Greatest Support 20 | 20 20 20 Greatest Overweight (x) 6 | . 4 6 Average Overweight (x) . | . . 1 Largest Inventory Capacity 25 | 5 25 25 Average Capacity 11 | 5 11 14 Most Carried 7 | 3 7 6 Average Carried 3 | 1 3 3 Final Capacity 25 | 5 25 15 Final Carried 7 | 1 7 3 Class Distribution -------------------- 100% | Mutant Dominant Class ---------------- Mutant | -10/Materials Mutant | -9/Materials Resources | -11 -10 -9 ----------- Run | Yrd Mat Mat Matter Collected 440 | 262 121 57 Remotely . | . . . Salvage Created 200 | 32 111 57 Parts 7 | 4 3 . Haulers Intercepted . | . . . Recyclers Shooed 1 | . 1 . Parts Field Recycled . | . . . Retrieved Matter . | . . . Parts Self-Destructed . | . . . Prevented . | . . . Kills | -11 -10 -9 ------- Run | Yrd Mat Mat Combat Hostiles Destroyed 4 | 1 2 1 Guns 4 | 1 2 1 Classes Destroyed 3 | 1 1 1 Watcher 1 | . 1 . Grunt 3 | 1 2 . Brawler 1 | . . 1 Best Kill Streak 2 | 1 2 1 Combat Bots Only 2 | 1 2 1 Max Kills in Single Turn 1 | 1 1 1 Gunslinging . | . . . Exploded . | . . . Melee . | . . . Uniques/NPCs Destroyed . | . . . Combat | -11 -10 -9 -------- Run | Yrd Mat Mat Hostile Shots Fired 118 | 4 15 99 Missed 32 | 1 5 26 Damage Taken 981 | 24 116 841 Core 423 | 8 12 403 Absorbed by Shields . | . . . Ignored by Resistances 284 | 7 34 243 Core Remaining (%) 94 | 96 92 . Volleys Fired 19 | 2 11 6 Largest 2 | 2 2 1 Hottest 100 | 100 100 20 Shots Fired 32 | 4 22 6 Gun 32 | 4 22 6 Cannon . | . . . Launcher . | . . . Special . | . . . Kinetic 6 | . . 6 Thermal 26 | 4 22 . Explosive . | . . . Electromagnetic . | . . . Robot Hit Streak 18 | 3 18 8 Robot Miss Streak 1 | . 1 . Penetration Max . | . . . Secondary Targets 1 | . 1 . Max Gunslinging Chain 1 | . 1 . Shots Hit Robots 27 | 3 18 6 Core Hits 12 | 2 6 4 Critical Kills . | . . . Critical Parts Destroyed . | . . . Critical Strikes 1 | . 1 . Burn 1 | . 1 . Melee Attacks . | . . . Impact . | . . . Slashing . | . . . Piercing . | . . . Sneak Attacks . | . . . Combat Hostiles . | . . . Follow-up Attacks . | . . . Damage Inflicted 317 | 50 226 41 Guns 314 | 50 224 40 Cannons . | . . . Explosions . | . . . Melee . | . . . Ramming 3 | . 2 1 Kinetic 40 | . . 40 Thermal 274 | 50 224 . Explosive . | . . . Electromagnetic . | . . . Impact . | . . . Slashing . | . . . Piercing . | . . . Highest Corruption 6 | . . 6 Average Corruption 5 | . . 5 Corruption Purged . | . . . Corruption Blocked . | . . . Effects 1 | . . 1 Energy Discharges 1 | . . 1 Overload Shots . | . . . Overflow Damage . | . . . Projectiles . | . . . Explosions . | . . . Melee . | . . . Knockbacks . | . . . Impact . | . . . Kinetic . | . . . Secondary . | . . . Self-Inflicted Damage . | . . . Shots . | . . . Rammed 1 | . . 1 Targets Rammed 3 | . 2 1 Kicked 2 | . 2 . Crushed . | . . . Highest Temperature 165 | 84 165 6 Average Temperature 67 | 45 82 4 Received Heat Transfer 471 | 18 84 369 Siege Activations . | . . . Robots Corrupted . | . . . Combat Hostiles . | . . . Parts Fried . | . . . Impact Corruptions . | . . . Robots Melted . | . . . Combat Hostiles . | . . . Parts Melted 3 | . 3 . Heat Transferred 888 | 148 740 . Parts Sabotaged . | . . . Parts Stolen . | . . . Parts Stripped . | . . . Power Chain Reactions . | . . . Alert | -11 -10 -9 ------- Run | Yrd Mat Mat Peak Influence 61 | 20 61 30 Initial 11 | . 11 7 Average 23 | 5 31 4 Maximum Alert Level . | . . . Low Security (%) 100 | 100 100 100 Level 1 . | . . . Level 2 . | . . . Level 3 . | . . . Level 4 . | . . . Level 5 . | . . . High Security . | . . . Max Security . | . . . Squads Dispatched 2 | . . 2 Investigation . | . . . Extermination . | . . . Reinforcement 2 | . . 2 Assault . | . . . Garrison . | . . . Intercept . | . . . Searches Triggered . | . . . Construction Impeded . | . . . Haulers Reinforced . | . . . Active Scanning Responses . | . . . Cargo Convoy Interrupts . | . . . Stealth | -11 -10 -9 --------- Run | Yrd Mat Mat Distress Signals 1 | . . 1 Communications Jammed . | . . . Distress Signals . | . . . Times Spotted 13 | 1 4 8 Peak Tracking Total 6 | 1 2 6 Tactical Retreats . | . . . Traps | -11 -10 -9 ------- Run | Yrd Mat Mat Traps Triggered 2 | . . 2 Indirectly . | . . . Trap Hack Attempts . | . . . Triggered . | . . . Disarmed . | . . . Reprogrammed . | . . . Reused . | . . . Traps Extracted . | . . . Installed . | . . . Triggered . | . . . Machines | -11 -10 -9 ---------- Run | Yrd Mat Mat Machines Disabled . | . . . Max in Single Turn . | . . . Machines Repaired . | . . . Machines Dismantled . | . . . Machines Sabotaged . | . . . Overloaded Fab Kills . | . . . Hacking | -11 -10 -9 --------- Run | Yrd Mat Mat Machines Accessed . | . . . Terminals . | . . . Fabricators . | . . . Repair Stations . | . . . Recycling Units . | . . . Scanalyzers . | . . . Garrison Access . | . . . Total Hacks . | . . . Successful . | . . . Failed . | . . . Catastrophic . | . . . Database Lockouts . | . . . Manual . | . . . Terminals . | . . . Fabricators . | . . . Repair Stations . | . . . Recycling Units . | . . . Scanalyzers . | . . . Garrison Access . | . . . Terminal Hacks . | . . . Fabricator Hacks . | . . . Repair Station Hacks . | . . . Recycling Unit Hacks . | . . . Scanalyzer . | . . . Garrison Access Hacks . | . . . Unauthorized Hacks . | . . . Terminals . | . . . Fabricators . | . . . Repair Stations . | . . . Recycling Units . | . . . Scanalyzers . | . . . Garrison Access . | . . . Data Cores Recovered . | . . . Used . | . . . Hacking Detections . | . . . Full Trace Events . | . . . Feedback Events . | . . . Feedback Blocked . | . . . Robot Schematics Acquired . | . . . Robots Built . | . . . Authchips . | . . . Time . | . . . Total Robot Build Rating . | . . . Part Schematics Acquired . | . . . Parts Built . | . . . Authchips . | . . . Time . | . . . Total Part Build Rating . | . . . Parts Repaired . | . . . Time . | . . . Parts Recycled . | . . . Recycled Matter . | . . . Retrieved Matter . | . . . Retrieved Components . | . . . Parts Scanalyzed . | . . . Part Schematics Acquired . | . . . Parts Damaged . | . . . Bothacking | -11 -10 -9 ------------ Run | Yrd Mat Mat Used RIF Installer . | . . . Robots Hacked . | . . . Non-combat . | . . . Combat . | . . . Robot Hacks Applied . | . . . Relay Couplers Released . | . . . Fabnet Peak Effective % . | . . . Robots Rewired . | . . . Allies Hacked . | . . . Hacks Repelled . | . . . Allies | -11 -10 -9 -------- Run | Yrd Mat Mat Total Allies . | . . . Largest Group . | . . . Highest-Rated Group . | . . . Highest-Rated Ally . | . . . Total Orders . | . . . Ally Attacks . | . . . Total Damage . | . . . Kills . | . . . Allies Corrupted . | . . . Allies Melted . | . . . Intel | -11 -10 -9 ------- Run | Yrd Mat Mat Robot Analysis Total . | . . . Derelict Logs Recovered . | . . . Drone Launches . | . . . Drone Recoveries . | . . . Exploration | -11 -10 -9 ------------- Run | Yrd Mat Mat Turns Passed 1013 | 122 715 176 Spaces Moved 590 | 86 427 77 Core 34 | 27 . 7 Treads . | . . . Legs 556 | 59 427 70 Wheels . | . . . Hover . | . . . Flight . | . . . Fastest Speed 50 | 50 120 120 Average Speed 154 | 98 156 205 Slowest Speed 400 | 120 400 350 Overloaded Moves . | . . . Propulsion Burnouts . | . . . Robots Hopped . | . . . Cave-ins Triggered . | . . . Exploration Rate (%) 15 | 6 30 11 Regions Visited 2 Branch Regions . Pre-discovered Areas . | . . . Known Exits Taken . | . . . Unknown Exits Taken 2 | 1 1 . Scrap Searched . | . . . Spaces Dug . | . . . Terrain Destroyed . | . . . Melee . | . . . Projectile . | . . . AOE . | . . . Terrain Rammed . | . . . Walls Destroyed . | . . . Machines Disabled . | . . . Actions | -11 -10 -9 --------- Run | Yrd Mat Mat Total 667 | 120 454 93 Wait 17 | 17 . . Move 588 | 85 426 77 Hop . | . . . Pick Up 19 | 8 9 2 Fast Attach . | . . . Attach 12 | 7 3 2 Detach . | . . . Swap 1 | . 1 . Drop 8 | 1 2 5 Fire 19 | 2 11 6 Melee . | . . . Ram 1 | . . 1 Kick 2 | . 2 . Crush . | . . . Escape Stasis . | . . . Rewire . | . . . Trap . | . . . Miscellaneous . | . . . Route ------- -11/Scrapyard -10/Materials (discovered 2 exits: [*Mat] / [*Min]) -9/Materials History --------- Turn | Location | Event 2 | -11/Scrapyard | Met Revision 17 70 | -11/Scrapyard | Discovered new exit (range 8) 123 | -11/Scrapyard | Entered Materials 153 | -10/Materials | Discovered new exit (range 16) 319 | -10/Materials | Build established: Mutant 529 | -10/Materials | Discovered new exit (range 7) 838 | -10/Materials | Entered another Materials area 838 | -9/Materials | Evolved 2 slots: Utility x1, Weapon x1 994 | -9/Materials | Core integrity fell below 50% 997 | -9/Materials | Lost 4 parts (1p1n1u1w) 1009 | -9/Materials | Core integrity fell below 20% 1014 | -9/Materials | Destroyed by Y-45 Defender with Heavy Assault Rifle Last Messages --------------- System corrupted: Energy discharge (-36). K-01 Serf collects debris. Knocked back. Triggered Blade Trap. Massive razor-sharp blades shoot up from within the floor. Aluminum Leg severed. Med. Laser severed. K-01 Serf collects debris. Triggered Blade Trap. Massive razor-sharp blades shoot up from within the floor. K-01 Serf collects debris. Knocked back. Slammed into K-01 Serf. R-06 Scavenger collects Aluminum Leg. Knocked back. B-36 Bruiser destroyed. Lgt. Assault Rifle destroyed. Acquired 57 matter. Map ----- +----------------------------------------------------+ | ???????????????????????# # #????? | | ???????????????????????########### #????? | | ????????????????????????? """ # #????? | | ?????????????????????????""""" # #????? | | ???????????????????????? """"" # #????? | | ???????????????????????# """"" + #??### | | ???????????????????????# """ # #? # | | ???????????????????????# # #? # | | ???????????????? / # # # | | ????????????????? ##### # # # | | ???????????????????????########### + # | | ?????????????????????????????##### # "" # | | ?????????????????????????????#!! # "T # | | ?????????????????????????????#!! #?"" # | | ?????????????????????????????#]] #? # | | ?????????????????????????????#]] #??### | | ?????????????????????????????#!! #????? | | ????????????? ??????????????#!! #????? | | ???????????? ?????????????##### #????? | | ??????????? ????????????????#! #????? | | ??????????? #########?????##%= ##???? | | ?????????? ####### [ #???? | | ???????????"" ^ #???? | | ???????????" g g u=[ #???? | | ?????????? Y ^ ^ #???? | | ?????????? gY@###/### #???? | | ?????????? [! #?????#######???? | | ???????????"" [! #???????????????? | | ???????????" #???????????????? | | ?????????? a #???????????????? | | ??????????? " " #???????????????? | | ???????????#### "T" #???????????????? | | ??????????????# """ #???????????????? | | ??????????????# #########???????????????? | | ??????????????# ????????????????????????? | | ??????????????# ?????????????????????????? | | ??????????????????????????????????????????? | | ??????????????????????????????????????????? | | ??????????????????????????????????????????? | | ??????????????????????????????????????????? | | ??????????????????????????????????????????? | | ??????????????????????????????????????????? | | ??????????????????????????????????????????? | | ??????????????????????????????????????????? | | ??????????????????????????????????????????? | | ??????????????????????????????????????????? | | ??????????????????????????????????????????? | | ??????????????????????????????????????????? | | ??????????????????????????????????????????? | | ??????????????????????????????????????????? | +----------------------------------------------------+ Best States ------------- Heat Dissipation 35 Energy Generation 10 Energy Capacity 250 Matter Stores 379 Matter Capacity 500 Sight Range 16 Terrain Scan Density 10 Resistance: KI 20 Resistance: TH 20 Resistance: EX 20 Resistance: EM 20 Resistance: I 20 Resistance: S 20 Resistance: P 20 Evasion (%) 55 Targeting Accuracy 5 Offensive Hacking 10 Item Schematics ----------------- None Robot Schematics ------------------ None Fabricated ------------ Nothing Alien Tech Used ----------------- None Achievements -------------- None Challenges ------------ None Game ------ Seed TitaniumWardroneMatrix Manual? 0 Play Time 00:09:23 Cumulative 0.5 hours Start 2024.06.25 @ 14:03:37 End 2024.06.25 @ 14:31:40 Sessions 1 Manual Loads 0 Difficulty Adventurer Special Mode None Game No. 2 Rogue 0 Adventurer 2 Explorer 0 Win Type - Total 0 Types 0/0/0/0/0/0/0/0/0 Lore% 0 Gallery% 2 Achievement% 3 Wizard Run 0 Options --------- Layout 1 ASCII 0 Keyboard 0 Movement Arrows Keybinds 0 Fullscreen 1 Font 24/Smallcaps Map View 50x35 Zoom Use 0% Tactical HUD 0 Map Filters NONE Filters NONE Steam 1 RUN: 830d32f6-7eb4-416f-8b8b-67b5766f6de7